bitfinex-derivatives/quotes_BNBF0:USTF0_20251002
["timestamp","ask_amount","ask_price","bid_price","bid_amount"]
[1759444751616,1.021,1087.1,1085.2,0.81288413]
[1759444751911,1.021,1087.1,1085.1,0.81288413]
[1759444753416,1.021,1087.1,1085.0,0.81288413]
[1759444756512,1.021,1087.1,1084.7,1.23496339]
[1759444756513,1.021,1087.1,1084.9,0.81288413]
[1759444757514,1.027,1087.0,1084.9,0.81288413]
[1759444759820,1.027,1087.0,1084.8,0.81288413]
[1759444761421,1.027,1087.0,1084.7,0.81288413]
[1759444764820,1.027,1087.0,1084.6,0.81288413]
[1759444766419,1.027,1087.0,1084.5,0.81288413]
[1759444772330,1.021,1087.1,1084.5,0.81288413]
[1759444775128,1.093,1087.0,1084.5,0.81288413]
[1759444777635,1.093,1087.0,1084.3,0.81288413]
[1759444781235,1.093,1087.0,1084.4,0.81288413]
[1759444782136,1.093,1087.0,1084.5,0.81288413]
[1759444782335,1.093,1087.0,1084.6,0.81288413]
[1759444782536,1.093,1087.0,1084.8,0.81288413]
[1759444782839,1.093,1087.0,1085.0,0.81288413]
[1759444783335,1.093,1087.0,1085.1,0.81288413]
[1759444784438,1.093,1087.0,1085.2,0.81288413]
[1759444784836,1.093,1087.0,1085.1,0.81288413]
[1759444785241,1.093,1087.0,1085.2,0.81288413]
[1759444785740,1.093,1087.0,1085.3,0.81288413]
[1759444786140,1.021,1087.1,1085.3,0.81288413]
[1759444787438,1.021,1087.1,1085.4,0.81288413]
[1759444788644,0.885,1087.0,1085.4,0.81288413]
[1759444788839,0.885,1087.0,1085.3,0.81288413]
[1759444789844,0.885,1087.0,1085.2,0.81288413]
[1759444790442,0.885,1087.0,1085.3,0.81288413]
[1759444790641,0.885,1087.0,1085.2,0.81288413]
[1759444791345,0.885,1087.0,1085.3,0.81288413]
[1759444791645,0.885,1087.0,1085.2,0.81288413]
[1759444793345,0.885,1087.0,1085.3,0.81288413]
[1759444793546,0.885,1087.0,1085.4,0.81288413]
[1759444798454,0.885,1087.0,1085.5,0.81288413]
[1759444801258,0.92,1086.9,1085.5,0.81288413]
[1759444803154,0.92,1086.9,1085.7,0.81288413]
[1759444803459,0.92,1086.9,1085.8,0.81288413]
[1759444804058,0.92,1086.9,1085.7,0.81288413]
[1759444804466,0.92,1086.9,1085.8,0.81288413]
[1759444804867,0.92,1086.9,1085.7,0.81288413]
[1759444806564,0.92,1086.9,1085.6,0.81288413]
[1759444807266,0.92,1086.9,1085.7,0.81288413]
[1759444807669,0.92,1086.9,1085.6,0.81288413]
[1759444810772,0.885,1086.8,1085.6,0.81288413]
[1759444814378,0.885,1086.8,1086.0,0.81288413]
[1759444818582,0.885,1086.8,1085.9,0.81288413]
[1759444818780,0.885,1086.8,1085.8,0.81288413]
[1759444819786,0.885,1086.8,1085.7,0.81288413]
[1759444819986,0.885,1086.8,1085.5,0.81288413]
[1759444821385,0.885,1086.8,1085.6,0.81288413]
[1759444823386,0.885,1086.8,1085.7,0.81288413]
[1759444824789,0.885,1086.8,1085.6,0.81288413]
[1759444826791,0.885,1086.8,1085.7,0.81288413]
[1759444827591,0.885,1086.8,1085.6,0.81288413]
[1759444828193,0.885,1086.8,1085.7,0.81288413]
[1759444834697,0.885,1086.8,1085.8,0.81288413]
[1759444836699,0.885,1086.8,1086.0,0.81288413]
[1759444837300,0.885,1086.8,1085.9,0.81288413]
[1759444837601,0.885,1086.8,1086.0,0.81288413]
[1759444838905,0.92,1086.9,1086.0,0.81288413]
[1759444839400,0.82531308,1088.1,1086.0,0.81288413]
[1759444839801,0.82531308,1088.1,1086.1,0.81288413]
[1759444840304,0.82531308,1088.1,1086.0,0.81288413]
[1759444840503,0.82531308,1088.1,1086.1,0.81288413]
[1759444842403,0.953,1088.0,1086.1,0.81288413]
[1759444843008,1.77831308,1088.0,1086.1,0.81288413]
[1759444843307,0.953,1088.0,1086.1,0.81288413]
[1759444843508,0.911,1087.9,1086.1,0.81288413]
[1759444844208,0.911,1087.9,1086.2,0.81288413]
[1759444844809,0.911,1087.9,1085.0,2.05827232]
[1759444844810,0.911,1087.9,1086.1,0.81288413]
[1759444847608,0.911,1087.9,1086.0,0.81288413]
[1759444853013,0.911,1087.9,1085.9,0.81288413]
[1759444857410,0.953,1088.0,1085.9,0.81288413]
[1759444857710,0.953,1088.0,1086.0,0.81288413]
[1759444859312,0.953,1088.0,1085.9,0.81288413]
[1759444859517,0.953,1088.0,1086.0,0.81288413]
[1759444860816,0.939,1087.9,1086.0,0.81288413]
[1759444864120,1.148,1087.8,1086.0,0.81288413]
[1759444869020,1.148,1087.8,1086.2,0.81288413]
[1759444869819,1.148,1087.8,1086.1,0.81288413]
[1759444870425,1.148,1087.8,1085.9,1.23496339]
[1759444870426,1.97331308,1087.8,1086.2,0.81288413]
[1759444870726,1.97331308,1087.8,1086.1,0.81288413]
[1759444872824,1.97331308,1087.8,1086.2,0.81288413]
[1759444874926,1.97331308,1087.8,1086.1,0.81288413]
[1759444875122,0.82531308,1087.7,1086.1,0.81288413]
[1759444875325,0.82531308,1087.6,1086.2,0.81288413]
[1759444876222,0.82531308,1087.5,1086.1,0.81288413]
[1759444876426,0.82531308,1087.5,1086.3,0.61163295]
[1759444876723,0.82531308,1087.6,1086.3,0.61163295]
[1759444877932,0.82531308,1087.7,1086.2,0.61162518]
[1759444878324,0.82531308,1087.7,1086.1,0.61162518]
[1759444879126,1.97331308,1087.8,1086.1,0.61162518]
[1759444879325,1.97331308,1087.8,1086.0,0.61162518]
[1759444879832,0.82531308,1087.6,1085.9,0.61162518]
[1759444883231,0.82531308,1087.4,1085.9,0.61162518]
[1759444884030,1.159,1087.3,1085.9,0.61162518]
[1759444884427,1.98431308,1087.3,1085.8,0.61162518]
[1759444885229,1.98431308,1087.3,1085.6,0.81288413]
[1759444885429,1.98431308,1087.3,1085.8,0.61144902]
[1759444886733,1.98431308,1087.3,1085.7,0.61144902]
[1759444887829,1.98431308,1087.3,1085.6,0.61144902]
[1759444888031,1.98431308,1087.3,1085.5,0.61144902]
[1759444889832,0.82531308,1087.1,1085.4,0.61144902]
[1759444890229,0.82531308,1087.1,1085.2,0.61144902]
[1759444890529,0.82531308,1087.0,1085.1,0.61144902]
[1759444890729,0.82531308,1086.9,1085.0,0.61144902]
[1759444891231,0.82531308,1086.9,1084.9,0.77151857]
[1759444891429,0.82531308,1086.8,1084.9,0.16006955]
[1759444892136,0.82531308,1087.1,1084.9,0.16006955]
[1759444892334,0.82531308,1087.2,1084.9,0.16006955]
[1759444892629,0.82531308,1087.1,1084.9,0.16006955]
[1759444893336,0.82531308,1087.2,1084.9,0.16006955]
[1759444894337,1.191,1087.1,1084.9,0.16006955]
[1759444894837,2.01631308,1087.1,1084.9,0.16006955]
[1759444895538,2.01631308,1087.1,1084.9,0.77151857]
[1759444895733,1.191,1087.1,1084.9,0.77151857]
[1759444896035,2.01631308,1087.1,1084.9,0.77151857]
[1759444896337,1.191,1087.1,1084.9,0.77151857]
[1759444896834,1.191,1087.1,1085.0,0.61144902]
[1759444900440,1.191,1087.1,1085.1,0.61144902]
[1759444903443,1.191,1087.1,1084.9,0.16006955]
[1759444906944,0.16016827,1087.0,1084.9,0.16006955]
[1759444912249,0.16016827,1087.0,1084.9,0.97295368]
[1759444912447,1.17,1086.9,1084.9,0.97295368]
[1759444913452,1.17,1086.9,1084.9,0.16006955]
[1759444928161,1.069,1086.8,1084.9,0.16006955]
[1759444929657,1.069,1086.8,1084.9,0.97295368]
[1759444930461,1.069,1086.8,1085.0,0.81288413]
[1759444932464,1.069,1086.8,1085.1,0.81288413]
[1759444934565,1.069,1086.8,1085.2,0.81288413]
[1759444936263,1.069,1086.8,1085.3,0.81288413]
[1759444937268,1.128,1086.7,1085.3,0.81288413]
[1759444937964,1.128,1086.7,1084.9,0.16006955]
[1759444937965,1.128,1086.7,1085.0,0.81288413]
[1759444938166,1.128,1086.7,1085.1,0.81288413]
[1759444938465,1.128,1086.7,1085.2,0.81288413]
[1759444938872,1.128,1086.7,1085.3,0.81288413]
[1759444939072,1.128,1086.7,1085.4,0.81288413]
[1759444940772,1.128,1086.7,1085.5,0.81288413]
[1759444951278,1.069,1086.8,1085.5,0.81288413]
[1759444953278,0.82531308,1087.5,1085.5,0.81288413]
[1759444953578,0.1601049,1087.5,1085.6,0.81288413]
[1759444954381,0.755,1087.4,1085.6,0.81288413]
[1759444954783,0.755,1087.4,1085.5,0.81288413]
[1759444954979,0.755,1087.4,1085.6,0.81288413]
[1759444955477,0.847,1087.3,1085.6,0.81288413]
[1759444957378,0.847,1087.3,1085.5,0.81288413]
[1759444960179,0.847,1087.3,1085.6,0.81288413]
[1759444960376,0.847,1087.3,1085.5,0.81288413]
[1759444960682,0.847,1087.3,1085.6,0.81288413]
[1759444961681,1.67231308,1087.3,1085.3,0.81288413]
[1759444967182,0.847,1087.3,1085.3,0.81288413]
[1759444970489,0.847,1087.3,1085.4,0.81288413]
[1759444974096,0.847,1087.3,1085.5,0.81288413]
[1759444974792,0.785,1087.2,1085.5,0.81288413]
[1759444977897,0.785,1087.2,1085.3,0.81288413]
[1759444979898,0.785,1087.2,1085.4,0.81288413]
[1759444980495,0.82531308,1087.1,1085.3,0.81288413]
[1759444983998,0.9854445,1087.1,1085.3,0.81288413]
[1759444984998,0.9854445,1087.1,1085.2,0.97301555]
[1759444986996,0.16013142,1087.1,1085.2,0.97301555]
[1759444987299,0.82531308,1087.0,1085.2,0.16013142]
[1759444987502,0.82531308,1086.9,1085.2,0.16013142]
[1759444987905,0.82531308,1086.8,1085.2,0.16013142]
[1759444988404,0.82531308,1086.9,1085.2,0.16013142]
[1759444990000,0.82531308,1086.7,1085.2,0.16013142]
[1759444990198,0.82531308,1086.8,1085.2,0.16013142]
[1759444990402,0.82531308,1086.7,1085.2,0.16013142]
[1759444991707,0.82531308,1086.7,1084.8,0.81288413]
[1759444991907,0.82531308,1086.7,1085.0,0.16020809]
[1759444993907,0.82531308,1086.6,1084.6,0.81288413]
[1759444994108,0.82531308,1086.6,1084.9,0.16022431]
[1759444994309,0.738,1086.5,1084.9,0.16022431]
[1759445005720,0.738,1086.5,1084.2,0.81288413]
[1759445006016,0.738,1086.5,1084.7,0.16026047]
[1759445006421,1.56331308,1086.5,1084.2,0.81288413]
[1759445006720,0.738,1086.5,1084.4,0.16028704]
[1759445006921,1.56331308,1086.5,1084.4,0.16028704]
[1759445010627,0.82531308,1086.1,1084.4,0.16028704]
[1759445010824,0.82531308,1086.4,1084.4,0.16028704]
[1759445013529,0.852,1086.3,1084.4,0.16028704]
[1759445016534,0.852,1086.3,1083.3,0.81288413]
[1759445016934,0.852,1086.3,1084.0,0.16033652]
[1759445017531,0.82531308,1086.2,1084.0,0.16033652]
[1759445018136,1.67731308,1086.3,1084.0,0.16033652]
[1759445018336,0.82531308,1086.2,1084.0,0.16033652]
[1759445018939,1.67731308,1086.3,1084.0,0.16033652]
[1759445019338,0.82531308,1086.2,1084.0,0.16033652]
[1759445020039,0.852,1086.3,1084.0,0.16033652]
[1759445020040,1.67731308,1086.3,1084.0,0.16033652]
[1759445021341,0.896,1086.2,1084.0,0.16033652]
[1759445026645,0.50601634,1086.1,1084.0,0.16033652]
[1759445026844,0.50601634,1086.0,1084.0,0.16033652]
[1759445027043,0.50601634,1085.9,1084.0,0.16033652]
[1759445027242,0.50601634,1085.8,1084.0,0.16033652]
[1759445027444,0.50601634,1085.7,1084.0,0.16033652]
[1759445027647,0.50601634,1085.6,1084.0,0.16033652]
[1759445027947,0.896,1086.2,1084.0,0.16033652]
[1759445027948,0.50601634,1085.5,1084.0,0.16033652]
[1759445028146,0.896,1086.2,1084.0,0.16033652]
[1759445028347,0.50607092,1086.1,1084.0,0.16033652]
[1759445028543,0.50607092,1086.0,1084.0,0.16033652]
[1759445028848,0.50607092,1085.9,1084.0,0.16033652]
[1759445029146,0.50607092,1085.8,1084.0,0.16033652]
[1759445029347,0.50607092,1085.7,1084.0,0.16033652]
[1759445029542,0.50607092,1085.6,1084.0,0.16033652]
[1759445029744,0.50607092,1085.5,1084.0,0.16033652]
[1759445029944,0.896,1086.2,1084.0,0.16033652]
[1759445030142,0.50618575,1086.1,1084.0,0.16033652]
[1759445030344,0.50618575,1086.0,1084.0,0.16033652]
[1759445030547,0.50618575,1085.9,1084.0,0.16033652]
[1759445030748,0.50618575,1085.8,1084.0,0.16033652]
[1759445030950,0.50618575,1085.7,1084.0,0.16033652]
[1759445031149,0.50618575,1085.6,1084.0,0.16033652]
[1759445031449,0.50618575,1085.5,1084.0,0.16033652]
[1759445031650,0.896,1086.2,1084.0,0.16033652]
[1759445031845,0.50639269,1086.1,1084.0,0.16033652]
[1759445032152,0.50639269,1086.0,1084.0,0.16033652]
[1759445032448,0.896,1086.2,1084.0,0.16033652]
[1759445032650,0.50652215,1086.1,1084.0,0.16033652]
[1759445032850,0.50652215,1086.0,1084.0,0.16033652]
[1759445033146,0.50652215,1085.9,1084.0,0.16033652]
[1759445033347,0.50652215,1085.8,1084.0,0.16033652]
[1759445033551,0.50652215,1085.7,1084.0,0.16033652]
[1759445033751,0.50652215,1085.6,1084.0,0.16033652]
[1759445033951,0.50652215,1085.5,1084.0,0.16033652]
[1759445034149,0.896,1086.2,1084.0,0.16033652]
[1759445034449,0.50671443,1086.1,1084.0,0.16033652]
[1759445034654,0.50671443,1086.0,1084.0,0.16033652]
[1759445034853,0.50671443,1085.9,1084.0,0.16033652]
[1759445035053,0.50671443,1085.8,1084.0,0.16033652]
[1759445035251,0.50671443,1085.7,1084.0,0.16033652]
[1759445035551,0.50671443,1085.6,1084.0,0.16033652]
[1759445035752,0.896,1086.2,1084.0,0.16033652]
[1759445035955,0.50702903,1086.1,1084.0,0.16033652]
[1759445036150,0.50702903,1086.0,1084.0,0.16033652]
[1759445036449,0.50702903,1085.9,1084.0,0.16033652]
[1759445036653,0.50702903,1085.8,1084.0,0.16033652]
[1759445036955,0.50702903,1085.7,1084.0,0.16033652]
[1759445037153,0.896,1086.2,1084.0,0.16033652]
[1759445037453,0.50728324,1086.1,1084.0,0.16033652]
[1759445037654,0.50728324,1086.0,1084.0,0.16033652]
[1759445037855,0.50728324,1085.9,1084.0,0.16033652]
[1759445038052,0.50728324,1085.8,1084.0,0.16033652]
[1759445038252,0.50728324,1085.7,1084.0,0.16033652]
[1759445038451,0.896,1086.2,1084.0,0.16033652]
[1759445038652,0.50773638,1086.1,1084.0,0.16033652]
[1759445038851,0.50773638,1086.0,1084.0,0.16033652]
[1759445039052,0.50773638,1085.9,1084.0,0.16033652]
[1759445039254,0.50773638,1085.8,1084.0,0.16033652]
[1759445039457,0.50773638,1085.7,1084.0,0.16033652]
[1759445039652,0.896,1086.2,1084.0,0.16033652]
[1759445039856,0.50797751,1086.1,1084.0,0.16033652]
[1759445040056,0.50797751,1086.0,1084.0,0.16033652]
[1759445040253,0.50797751,1085.9,1084.0,0.16033652]
[1759445040452,0.50797751,1085.8,1084.0,0.16033652]
[1759445040654,0.50797751,1085.7,1084.0,0.16033652]
[1759445040859,0.896,1086.2,1084.0,0.16033652]
[1759445041058,0.50798013,1086.1,1084.0,0.16033652]
[1759445041260,0.50798013,1086.0,1084.0,0.16033652]
[1759445041555,0.896,1086.2,1084.0,0.16033652]
[1759445041556,0.50798013,1085.9,1084.0,0.16033652]
[1759445041759,0.50798013,1085.8,1084.0,0.16033652]
[1759445041956,0.896,1086.2,1084.0,0.16033652]
[1759445042161,0.50804457,1086.1,1084.0,0.16033652]
[1759445042360,0.896,1086.2,1084.0,0.16033652]
[1759445042361,0.50804457,1086.0,1084.0,0.16033652]
[1759445042558,0.50804457,1085.9,1084.0,0.16033652]
[1759445042757,0.896,1086.2,1084.0,0.16033652]
[1759445042959,0.5082276,1086.1,1084.0,0.16033652]
[1759445043261,0.5082276,1086.0,1084.0,0.16033652]
[1759445043461,0.5082276,1085.9,1084.0,0.16033652]
[1759445043661,0.896,1086.2,1084.1,1.23496339]
[1759445043858,0.50838374,1086.1,1084.0,1.39529991]
[1759445044058,0.50838374,1086.0,1084.0,1.39529991]
[1759445044262,0.896,1086.2,1084.1,1.23496339]
[1759445044460,0.50857999,1086.1,1084.1,1.23496339]
[1759445044661,0.50857999,1086.0,1084.1,1.23496339]
[1759445044860,0.896,1086.2,1084.0,1.39529991]
[1759445045065,0.50857999,1086.1,1084.0,1.39529991]
[1759445045267,0.50857999,1086.0,1084.0,1.39529991]
[1759445045464,0.896,1086.2,1084.0,1.39529991]
[1759445045667,0.50878166,1086.1,1084.0,1.39529991]
[1759445045864,0.50878166,1086.0,1084.0,1.39529991]
[1759445046168,0.896,1086.2,1084.1,1.23496339]
[1759445046364,0.50897036,1086.1,1084.1,1.23496339]
[1759445046563,0.50897036,1086.0,1084.1,1.23496339]
[1759445046766,0.896,1086.2,1084.1,1.23496339]
[1759445046963,0.50897036,1086.1,1084.1,1.23496339]
[1759445047267,0.50897036,1086.0,1084.1,1.23496339]
[1759445047564,0.852,1086.3,1084.2,1.23496339]
[1759445047762,0.50906873,1086.2,1084.1,1.23496339]
[1759445047962,0.50906873,1086.1,1084.1,1.23496339]
[1759445048162,0.852,1086.3,1084.2,1.23496339]
[1759445048467,0.50897884,1086.2,1084.2,1.23496339]
[1759445048669,0.852,1086.3,1084.2,1.23496339]
[1759445048864,0.50896281,1086.2,1084.3,1.23496339]
[1759445049165,0.852,1086.3,1084.3,1.23496339]
[1759445049369,0.50892258,1086.2,1084.2,1.23496339]
[1759445049569,0.852,1086.3,1084.2,1.23496339]
[1759445049768,0.50892258,1086.2,1084.2,1.23496339]
[1759445049965,0.852,1086.3,1084.2,1.23496339]
[1759445050165,0.50892012,1086.2,1084.2,1.23496339]
[1759445050468,0.852,1086.3,1084.2,1.23496339]
[1759445050669,1.007,1086.1,1084.2,1.23496339]
[1759445051369,1.007,1086.1,1084.9,1.23496339]
[1759445051566,0.49433108,1086.1,1085.8,1.23496339]
[1759445052068,0.49433108,1086.1,1085.9,1.23496339]
[1759445052269,0.49433108,1086.1,1085.7,1.23496339]
[1759445052964,0.49433108,1086.1,1085.6,1.23496339]
[1759445053466,0.49433108,1086.1,1085.4,1.23496339]
[1759445054369,0.49433108,1086.1,1085.2,1.23496339]
[1759445054870,0.49433108,1086.1,1085.0,1.23496339]
[1759445055167,0.49433108,1086.1,1084.9,1.23496339]
[1759445055467,1.13,1086.0,1084.9,1.23496339]
[1759445056271,1.13,1086.0,1084.8,1.23496339]
[1759445056675,1.13,1086.0,1085.3,0.80028622]
[1759445057272,1.13,1086.0,1085.2,0.80028622]
[1759445059871,1.13,1086.0,1084.0,0.16033652]
[1759445059872,1.13,1086.0,1085.1,0.80028622]
[1759445060274,1.13,1086.0,1085.0,0.80028622]
[1759445062576,1.13,1086.0,1084.8,0.80028622]
[1759445064280,1.13,1086.0,1084.7,0.80028622]
[1759445067376,1.13,1086.0,1084.6,0.80028622]
[1759445073379,1.13,1086.0,1084.5,0.80028622]
[1759445073881,1.13,1086.0,1084.4,0.80028622]
[1759445074081,1.13,1086.0,1084.2,0.80028622]
[1759445076180,1.13,1086.0,1084.3,0.80028622]
[1759445077185,1.13,1086.0,1084.4,0.80028622]
[1759445077585,1.13,1086.0,1084.3,0.80028622]
[1759445080495,1.13,1086.0,1084.2,0.80028622]
[1759445081897,0.16012958,1088.2,1084.2,0.80028622]
[1759445083295,0.16012958,1088.2,1084.3,0.80028622]
[1759445083493,0.16012958,1088.2,1084.2,0.80028622]
[1759445084997,0.98544266,1088.2,1084.2,0.80028622]
[1759445086194,0.98544266,1088.2,1084.3,0.80028622]
[1759445086397,1.002,1088.1,1084.3,0.80028622]
[1759445086693,1.82731308,1088.1,1084.2,0.80028622]
[1759445086997,1.04,1088.0,1084.2,0.80028622]
[1759445090194,1.04,1088.0,1084.3,0.80028622]
[1759445094306,1.04,1088.0,1084.4,0.80028622]
[1759445095907,1.04,1088.0,1084.5,0.80028622]
[1759445096604,1.04,1088.0,1084.6,0.80028622]
[1759445097336,1.04,1088.0,1084.7,0.80028622]
[1759445099006,1.04,1088.0,1084.8,0.80028622]
[1759445099209,1.04,1088.0,1084.9,0.80028622]
[1759445100706,1.86531308,1088.0,1084.9,0.80028622]
[1759445101110,1.04,1088.0,1084.9,0.80028622]
[1759445101310,1.86531308,1088.0,1085.0,0.80028622]
[1759445102209,1.04,1088.0,1085.1,0.80028622]
[1759445102508,1.04,1088.0,1084.0,0.16033652]
[1759445102509,1.04,1088.0,1085.2,0.80028622]
[1759445102811,0.819,1087.9,1085.2,0.80028622]
[1759445103412,0.819,1087.9,1085.3,0.80028622]
[1759445105413,0.819,1087.9,1085.4,0.80028622]
[1759445106207,0.819,1087.9,1085.5,0.80028622]
[1759445108113,0.819,1087.9,1085.6,0.80028622]
[1759445108314,0.819,1087.9,1085.8,0.80028622]
[1759445109410,0.819,1087.9,1085.5,1.23496339]
[1759445109411,0.819,1087.9,1085.9,0.80028622]
[1759445109711,1.009,1087.8,1085.9,0.80028622]
[1759445111214,1.009,1087.8,1086.0,0.80028622]
[1759445118621,1.009,1087.8,1086.1,0.80028622]
[1759445119126,1.83431308,1087.8,1086.1,0.80028622]
[1759445119322,1.009,1087.8,1086.0,0.80028622]
[1759445119527,1.009,1087.8,1085.3,0.80028622]
[1759445119721,0.82531308,1087.7,1085.4,0.80028622]
[1759445120426,1.83431308,1087.8,1085.4,0.80028622]
[1759445120625,1.83431308,1087.8,1085.5,0.80028622]
[1759445120929,1.83431308,1087.8,1085.6,0.80028622]
[1759445121128,1.009,1087.8,1085.7,0.80028622]
[1759445121326,1.009,1087.8,1085.8,0.80028622]
[1759445124228,0.962,1087.7,1085.8,0.80028622]
[1759445125033,0.962,1087.7,1085.9,0.80028622]
[1759445130542,0.962,1087.7,1086.0,0.80028622]
[1759445131046,0.962,1087.7,1086.1,0.80028622]
[1759445131244,0.962,1087.7,1086.2,0.80028622]
[1759445134745,0.962,1087.7,1086.1,0.80028622]
[1759445135249,0.962,1087.7,1086.0,0.80028622]
[1759445135445,0.962,1087.7,1086.1,0.80028622]
[1759445136349,0.962,1087.7,1086.0,0.80028622]
[1759445139659,1.006,1087.6,1086.0,0.80028622]
[1759445142658,1.006,1087.6,1086.1,0.80028622]
[1759445144957,1.006,1087.6,1086.4,0.80028622]
[1759445145561,1.006,1087.6,1086.1,1.23496339]
[1759445145562,1.006,1087.6,1086.5,0.80028622]
[1759445145863,1.006,1087.6,1086.6,0.80028622]
[1759445146667,1.006,1087.6,1085.9,0.80028622]
[1759445147269,1.006,1087.6,1086.0,0.80028622]
[1759445150270,1.006,1087.6,1086.1,0.80028622]
[1759445150470,1.006,1087.6,1085.9,1.23496339]
[1759445150471,1.006,1087.6,1086.2,0.80028622]
[1759445150970,1.006,1087.6,1085.9,0.80028622]
[1759445151173,1.006,1087.6,1086.0,0.80028622]
[1759445151471,1.006,1087.6,1086.1,0.80028622]
[1759445153069,1.006,1087.6,1086.7,0.80028622]
[1759445154277,1.006,1087.6,1086.6,0.80028622]
[1759445156377,1.006,1087.6,1086.5,0.80028622]
[1759445161181,1.006,1087.6,1086.4,0.80028622]
[1759445161681,0.962,1087.7,1086.5,0.80028622]
[1759445162078,0.962,1087.7,1086.4,0.80028622]
[1759445162477,0.15998492,1088.4,1086.4,0.80028622]
[1759445162677,0.15998492,1088.4,1086.2,0.80028622]
[1759445164479,0.805,1088.3,1086.2,0.80028622]
[1759445164881,0.805,1088.3,1086.3,0.80028622]
[1759445165281,0.805,1088.3,1086.4,0.80028622]
[1759445165884,1.136,1088.2,1086.4,0.80028622]
[1759445166085,1.136,1088.2,1086.3,0.80028622]
[1759445169188,1.136,1088.2,1086.6,0.80028622]
[1759445169588,1.136,1088.2,1086.5,0.80028622]
[1759445169988,1.136,1088.2,1086.4,0.80028622]
[1759445170990,1.136,1088.2,1086.1,0.80028622]
[1759445171590,1.136,1088.2,1086.2,0.80028622]
[1759445173490,1.136,1088.2,1086.1,0.80028622]
[1759445174588,1.136,1088.2,1086.3,0.80028622]
[1759445174888,1.136,1088.2,1086.4,0.80028622]
[1759445175691,1.136,1088.2,1086.5,0.80028622]
[1759445176391,1.136,1088.2,1086.6,0.80028622]
[1759445177295,1.136,1088.2,1086.4,0.80028622]
[1759445177496,1.136,1088.2,1086.6,0.80028622]
[1759445178593,1.136,1088.2,1086.7,0.80028622]
[1759445180696,1.136,1088.2,1086.3,0.80028622]
[1759445180897,1.136,1088.2,1086.4,0.80028622]
[1759445181598,1.136,1088.2,1085.8,0.80028622]
[1759445182300,1.136,1088.2,1085.9,0.80028622]
[1759445182700,1.136,1088.2,1086.0,0.80028622]
[1759445184103,1.136,1088.2,1086.1,0.80028622]
[1759445185305,1.136,1088.2,1086.3,0.80028622]
[1759445185604,1.136,1088.2,1086.4,0.80028622]
[1759445185900,1.136,1088.2,1086.2,0.80028622]
[1759445187000,1.136,1088.2,1086.1,0.80028622]
[1759445187902,0.982,1088.1,1086.1,0.80028622]
[1759445189406,0.982,1088.1,1086.2,0.80028622]
[1759445189705,0.982,1088.1,1086.1,0.80028622]
[1759445190303,0.982,1088.1,1086.2,0.80028622]
[1759445196904,0.982,1088.1,1086.3,0.80028622]
[1759445197607,0.982,1088.1,1086.4,0.80028622]
[1759445199012,0.982,1088.1,1086.5,0.80028622]
[1759445199813,0.982,1088.1,1086.4,0.80028622]
[1759445200112,0.982,1088.1,1086.5,0.80028622]
[1759445201315,0.982,1088.1,1086.6,0.80028622]
[1759445203114,0.982,1088.1,1084.7,2.88158126]
[1759445203115,0.982,1088.1,1086.4,0.80028622]
[1759445203414,0.982,1088.1,1086.5,0.80028622]
[1759445204314,0.982,1088.1,1086.4,0.80028622]
[1759445204614,0.982,1088.1,1086.5,0.80028622]
[1759445205315,0.982,1088.1,1086.4,0.80028622]
[1759445205716,0.982,1088.1,1086.5,0.80028622]
[1759445205915,0.982,1088.1,1086.4,0.80028622]
[1759445208017,0.982,1088.1,1086.5,0.80028622]
[1759445208416,0.982,1088.1,1086.2,1.23496339]
[1759445208417,0.982,1088.1,1086.4,0.80028622]
[1759445209316,0.982,1088.1,1086.5,0.80028622]
[1759445209820,0.982,1088.1,1086.4,0.80028622]
[1759445213922,1.136,1088.2,1086.4,0.80028622]
[1759445216922,0.987,1088.1,1086.4,0.80028622]
[1759445219820,0.987,1088.1,1086.5,0.80028622]
[1759445220021,0.82531308,1088.0,1086.3,0.80028622]
[1759445221126,1.81231308,1088.1,1086.3,0.80028622]
[1759445222825,0.987,1088.1,1086.1,0.80028622]
[1759445223527,0.82531308,1087.9,1086.3,0.80028622]
[1759445224825,0.82531308,1088.0,1086.2,0.80028622]
[1759445225323,1.81231308,1088.1,1086.2,0.80028622]
[1759445226024,0.82531308,1088.0,1086.2,0.80028622]
[1759445226325,1.81231308,1088.1,1086.2,0.80028622]
[1759445227929,0.792,1088.0,1086.2,0.80028622]
[1759445229530,0.792,1088.0,1086.1,0.80028622]
[1759445230233,1.61731308,1088.0,1086.1,0.80028622]
[1759445230534,0.792,1088.0,1086.1,0.80028622]
[1759445230731,1.61731308,1088.0,1086.1,0.80028622]
[1759445232531,1.61731308,1088.0,1086.2,0.80028622]
[1759445232732,0.792,1088.0,1086.3,0.80028622]
[1759445232933,0.792,1088.0,1086.2,0.80028622]
[1759445235039,0.792,1088.0,1086.3,0.80028622]
[1759445235234,0.792,1088.0,1086.4,0.80028622]
[1759445238435,0.792,1088.0,1086.5,0.80028622]
[1759445239140,0.792,1088.0,1086.6,0.80028622]
[1759445239337,0.792,1088.0,1086.5,0.80028622]
[1759445239838,0.792,1088.0,1086.4,0.80028622]
[1759445240335,0.792,1088.0,1086.5,0.80028622]
[1759445240734,0.792,1088.0,1086.6,0.80028622]
[1759445241437,0.792,1088.0,1086.7,0.80028622]
[1759445242943,0.904,1087.9,1086.7,0.80028622]
[1759445244939,0.904,1087.9,1086.6,0.80028622]
[1759445245638,0.904,1087.9,1086.7,0.80028622]
[1759445247741,0.904,1087.9,1086.8,0.80028622]
[1759445249046,0.904,1087.9,1086.7,0.80028622]
[1759445261254,0.904,1087.9,1086.7,0.80028622]
[1759445264455,0.904,1087.9,1086.6,0.80028622]
[1759445264657,0.904,1087.9,1086.7,0.80028622]
[1759445264857,0.904,1087.9,1086.6,0.80028622]
[1759445265856,0.976,1087.8,1086.6,0.80028622]
[1759445269161,0.976,1087.8,1086.5,0.80028622]
[1759445272868,0.976,1087.8,1086.3,0.80028622]
[1759445273062,0.976,1087.8,1086.2,0.80028622]
[1759445273565,0.976,1087.8,1086.5,0.80028622]
[1759445273769,0.976,1087.8,1086.6,0.80028622]